bitfinex-derivatives/quotes_ETHF0:USTF0_20230902
["timestamp","ask_amount","ask_price","bid_price","bid_amount"]
[1693674002675,22.44295158,1636.7,1636.6,5.98599709]
[1693674004278,0.42195446,1636.5,1636.4,5.98898901]
[1693674004476,14.72657446,1636.5,1636.4,5.98898901]
[1693674004775,19.01945078,1636.5,1636.4,5.98898901]
[1693674005169,15.03219868,1636.5,1636.4,5.98898901]
[1693674005370,15.03219868,1636.5,1636.4,5.491]
[1693674005570,19.01945078,1636.5,1636.4,5.491]
[1693674006168,14.43569078,1636.5,1636.4,5.983]
[1693674006372,0.72757868,1636.5,1636.4,10.56704]
[1693674006767,5.31133868,1636.5,1636.4,10.56704]
[1693674006967,8.49963429,1636.5,1636.4,10.56704]
[1693674007373,3.91587429,1636.5,1636.4,12.85906]
[1693674007974,3.91587429,1636.5,1636.4,15.15108]
[1693674007975,2.39100386,1636.5,1636.4,15.15108]
[1693674009374,0.00329767,1636.7,1636.4,15.15108]
[1693674009576,0.00329767,1636.7,1636.6,5.491]
[1693674009777,7.45368119,1636.7,1636.6,12.85825]
[1693674009980,7.45368119,1636.7,1636.6,10.0745]
[1693674010274,7.45368119,1636.7,1636.6,12.85825]
[1693674010681,2.87046119,1636.7,1636.6,12.85825]
[1693674012185,0.00329767,1636.7,1636.6,12.85825]
[1693674017584,2.29490767,1636.7,1636.6,12.85825]
[1693674019085,0.00329767,1636.7,1636.6,12.85825]
[1693674023190,2.29490767,1636.7,1636.6,12.85825]
[1693674024494,5.48320328,1636.7,1636.6,12.85825]
[1693674024785,8.65598306,1636.7,1636.6,12.85825]
[1693674026787,5.78881954,1636.7,1636.6,12.85825]
[1693674030995,8.65598306,1636.7,1636.6,12.85825]
[1693674031696,2.29490767,1636.7,1636.6,12.85825]
[1693674032996,0.00329767,1636.7,1636.6,12.85825]
[1693674036996,2.29490767,1636.7,1636.6,12.85825]
[1693674037798,5.16207119,1636.7,1636.6,12.85825]
[1693674038306,2.29490767,1636.7,1636.6,12.85825]
[1693674038602,7.85871146,1636.7,1636.6,12.85825]
[1693674038902,4.68593539,1636.7,1636.6,12.85825]
[1693674040002,4.99154721,1636.7,1636.6,12.85825]
[1693674040201,2.69993721,1636.7,1636.6,12.85825]
[1693674040706,2.39432539,1636.7,1636.6,12.85825]
[1693674041705,2.69993777,1636.7,1636.6,12.85825]
[1693674046301,5.56710129,1636.7,1636.6,12.85825]
[1693674046500,5.56710129,1636.7,1636.6,13.79560673]
[1693674046700,2.87046119,1636.7,1636.6,13.79560673]
[1693674047003,0.00329767,1636.7,1636.6,12.85825]
[1693674048410,2.87046119,1636.7,1636.6,12.85825]
[1693674050613,2.87046119,1636.7,1636.6,12.36625]
[1693674050812,2.87046119,1636.7,1636.6,12.85825]
[1693674051511,0.00329767,1636.7,1636.6,12.85825]
[1693674053613,3.49693625,1636.7,1636.6,12.85825]
[1693674056111,6.36409977,1636.7,1636.6,12.85825]
[1693674056809,3.49693625,1636.7,1636.6,12.85825]
[1693674061417,6.36409977,1636.7,1636.6,12.85825]
[1693674061717,2.87046119,1636.7,1636.6,12.85825]
[1693674063721,2.87046119,1636.7,1636.6,12.36625]
[1693674064919,2.87046119,1636.7,1636.6,12.85825]
[1693674066415,0.00329767,1636.7,1636.6,12.85825]
[1693674071121,0.00329767,1636.7,1636.6,21.65736065]
[1693674076226,13.36429422,1636.9,1636.6,21.65736065]
[1693674076526,11.07288422,1636.9,1636.8,5.491]
[1693674076726,13.94004774,1636.9,1636.8,10.07394]
[1693674077026,22.75188969,1636.9,1636.8,10.07394]
[1693674077226,22.75504212,1636.9,1636.8,10.07394]
[1693674079424,16.64326057,1636.9,1636.8,10.07394]
[1693674080128,13.77609705,1636.9,1636.8,10.56594]
[1693674080427,9.7853115,1636.9,1636.8,10.56594]
[1693674080927,5.2026415,1636.9,1636.8,12.85741]
[1693674081123,8.39470045,1636.9,1636.8,12.85741]
[1693674083328,10.68603045,1636.9,1636.8,12.85741]
[1693674084036,7.4939715,1636.9,1636.8,12.85741]
[1693674084235,7.18838243,1636.9,1636.8,12.85741]
[1693674084532,4.89705243,1636.9,1636.8,12.85741]
[1693674085133,7.76421595,1636.9,1636.8,12.85741]
[1693674085731,10.05554595,1636.9,1636.8,12.85741]
[1693674085929,10.05554595,1636.9,1636.8,12.36541]
[1693674086235,10.05554595,1636.9,1636.8,12.85741]
[1693674087629,7.76421595,1636.9,1636.8,12.85741]
[1693674090040,7.76421595,1636.9,1636.8,13.35359352]
[1693674091448,7.76421595,1636.9,1636.8,12.86159352]
[1693674091746,12.34687595,1636.9,1636.8,12.86159352]
[1693674092144,15.84451099,1636.9,1636.8,12.86159352]
[1693674092741,15.84451099,1636.9,1636.8,13.35359352]
[1693674093343,13.55318099,1636.9,1636.8,13.35359352]
[1693674094945,13.55318099,1636.9,1636.8,12.86159352]
[1693674096044,13.55318099,1636.9,1636.8,13.35359352]
[1693674097451,13.55318099,1636.9,1636.8,12.86159352]
[1693674099049,13.55318099,1636.9,1636.8,13.35359352]
[1693674099255,10.05239352,1636.9,1636.8,13.35359352]
[1693674100253,7.18523,1636.9,1636.8,13.35359352]
[1693674100456,9.47656,1636.9,1636.8,13.35359352]
[1693674100955,12.34372352,1636.9,1636.8,13.35359352]
[1693674104255,10.05239352,1636.9,1636.8,13.35359352]
[1693674104862,12.34372352,1636.9,1636.8,13.35359352]
[1693674106162,13.55002554,1636.9,1636.8,13.35359352]
[1693674107859,13.55002554,1636.9,1636.8,12.86159352]
[1693674109762,15.84135554,1636.9,1636.8,12.86159352]
[1693674111565,15.84135554,1636.9,1636.8,13.35359352]
[1693674112967,8.79089554,1636.9,1636.8,13.35359352]
[1693674114266,5.29326352,1636.9,1636.8,13.35359352]
[1693674116374,2.4261,1636.9,1636.8,13.35359352]
[1693674118173,4.71741,1636.9,1636.8,13.35359352]
[1693674118375,7.58457352,1636.9,1636.8,13.35359352]
[1693674118869,5.29326352,1636.9,1636.8,13.35359352]
[1693674119471,2.4261,1636.9,1636.8,13.35359352]
[1693674119672,5.29326352,1636.9,1636.8,12.86159352]
[1693674121178,8.79089316,1636.9,1636.8,12.86159352]
[1693674121877,4.17241434,1636.9,1636.8,13.35359352]
[1693674122079,6.36479316,1636.9,1636.8,13.35359352]
[1693674123576,6.36479316,1636.9,1636.8,12.86159352]
[1693674125676,8.65610316,1636.9,1636.8,12.86159352]
[1693674126978,8.65841429,1636.9,1636.8,12.86159352]
[1693674127176,5.46404421,1636.9,1636.8,12.86159352]
[1693674129278,6.75575861,1636.9,1636.8,12.86159352]
[1693674130779,9.04706861,1636.9,1636.8,12.86159352]
[1693674132086,3.88859509,1636.9,1636.8,13.35359352]
[1693674132284,1.59728509,1636.9,1636.8,13.35359352]
[1693674133783,3.88859509,1636.9,1636.8,13.35359352]
[1693674134684,6.75575861,1636.9,1636.8,13.35359352]
[1693674135082,6.75575861,1636.9,1636.8,12.86159352]
[1693674135480,6.75575861,1636.9,1636.8,13.35359352]
[1693674136286,6.75575861,1636.9,1636.8,12.86159352]
[1693674136487,7.55440116,1636.9,1636.8,12.86159352]
[1693674136786,7.55440116,1636.9,1636.8,13.35359352]
[1693674137688,9.84571116,1636.9,1636.8,13.35359352]
[1693674140587,6.97854764,1636.9,1636.8,13.35359352]
[1693674142893,9.84571116,1636.9,1636.8,13.35359352]
[1693674144495,10.94992345,1636.9,1636.8,13.35359352]
[1693674145495,10.94992345,1636.9,1636.8,12.86159352]
[1693674147504,10.94992345,1636.9,1636.8,13.35359352]
[1693674149200,8.08275993,1636.9,1636.8,13.35359352]
[1693674150104,10.94992345,1636.9,1636.8,13.35359352]
[1693674150304,14.03744881,1636.9,1636.8,10.57012352]
[1693674150506,20.14902611,1636.9,1636.8,10.57012352]
[1693674151505,9.74109352,1636.9,1636.8,10.57012352]
[1693674152006,9.74109352,1636.9,1636.8,5.07912352]
[1693674152305,9.74109352,1636.9,1636.8,2.78763352]
[1693674152806,9.74109352,1636.9,1636.8,5.07908352]
[1693674154409,7.44978352,1636.9,1636.8,5.07908352]
[1693674158403,7.44978352,1636.9,1636.8,7.37053352]
[1693674159615,11.74614886,1636.9,1636.8,7.37053352]
[1693674163312,7.75536331,1636.9,1636.8,7.37053352]
[1693674166615,7.44978352,1636.9,1636.8,7.37053352]
[1693674174033,16.231109,1637.0,1636.8,7.86253352]
[1693674174228,13.939819,1637.0,1636.8,10.38353352]
[1693674174527,2.39461879,1636.9,1636.8,10.38353352]
[1693674174728,7.55309231,1636.9,1636.8,10.38353352]
[1693674175036,7.55309231,1636.9,1636.8,9.89153352]
[1693674176233,9.84440231,1636.9,1636.8,9.89153352]
[1693674176640,9.84521919,1636.9,1636.8,9.89153352]
[1693674177936,5.26259919,1636.9,1636.8,10.38353352]
[1693674178733,7.55390919,1636.9,1636.8,10.38353352]
[1693674179135,5.26259919,1636.9,1636.8,10.38353352]
[1693674180136,7.55390919,1636.9,1636.8,15.87453352]
[1693674180336,2.39543567,1636.9,1636.8,15.87453352]
[1693674181033,3.99239506,1636.9,1636.8,15.87453352]
[1693674181740,3.49948234,1636.9,1636.8,15.87453352]
[1693674185433,6.36664586,1636.9,1636.8,15.87453352]
[1693674188738,2.86716352,1636.9,1636.8,15.87453352]
[1693674189540,9.14370648,1637.0,1636.8,15.87453352]
[1693674189741,9.71957,1637.0,1636.8,15.87453352]
[1693674190140,9.71957,1637.0,1636.8,15.38253352]
[1693674191045,9.71957,1637.0,1636.8,15.87453352]
[1693674191244,9.14362648,1637.0,1636.8,15.87453352]
[1693674191836,9.14362648,1637.0,1636.9,5.491]
[1693674192041,12.01079,1637.0,1636.9,7.78231]
[1693674194943,15.89803535,1637.0,1636.8,0.49618352]
[1693674195149,14.65624,1636.9,1636.6,0.92763941]
[1693674195458,6.87477,1636.7,1636.6,2.29172]
[1693674195740,6.87477,1636.7,1636.5,14.93899]
[1693674196849,9.26880803,1636.7,1636.6,0.492]
[1693674197046,9.57440641,1636.7,1636.5,12.64718]
[1693674197347,6.75453449,1636.6,1636.5,12.64718]
[1693674197543,6.75453449,1636.6,1636.5,15.43105]
[1693674197745,3.88737097,1636.6,1636.5,15.43105]
[1693674198241,1.59564097,1636.6,1636.5,15.43105]
[1693674198743,4.46280449,1636.6,1636.5,14.93905]
[1693674199449,4.46280449,1636.6,1636.5,15.43105]
[1693674199953,1.59564097,1636.6,1636.5,15.43105]
[1693674201353,1.59564097,1636.6,1636.5,15.54335704]
[1693674202053,1.59540873,1636.6,1636.5,15.54335704]
[1693674203955,6.8749,1636.7,1636.5,15.54335704]
[1693674204153,6.8749,1636.7,1636.6,5.491]
[1693674204354,9.74206352,1636.7,1636.6,10.07446]
[1693674204655,9.74206352,1636.7,1636.6,12.57136]
[1693674205557,7.45034352,1636.7,1636.6,12.57136]
[1693674210256,4.58318,1636.7,1636.6,12.57136]
[1693674211054,7.45034352,1636.7,1636.6,12.57136]
[1693674211958,9.84345661,1636.7,1636.6,12.57136]
[1693674212960,12.13512661,1636.7,1636.6,12.57136]
[1693674217664,9.26796309,1636.7,1636.6,12.57136]
[1693674218566,12.13512661,1636.7,1636.6,12.57136]
[1693674219066,9.74201352,1636.7,1636.6,12.57136]
[1693674219665,9.74201352,1636.7,1636.6,13.50091808]
[1693674221268,6.87485,1636.7,1636.6,13.50091808]
[1693674221969,9.74201352,1636.7,1636.6,13.50091808]
[1693674222471,6.87485,1636.7,1636.6,13.50091808]
[1693674222867,9.74201352,1636.7,1636.6,13.50091808]
[1693674225571,6.87485,1636.7,1636.6,13.50091808]
[1693674226275,9.74201352,1636.7,1636.6,13.50091808]
[1693674226566,6.87485,1636.7,1636.6,13.50091808]
[1693674227075,9.74201352,1636.7,1636.6,13.50091808]
[1693674234181,12.13512661,1636.7,1636.6,13.50091808]
[1693674235175,12.44073175,1636.7,1636.6,13.50091808]
[1693674236280,10.04761866,1636.7,1636.6,13.50091808]
[1693674236684,12.44196475,1636.7,1636.6,13.50091808]
[1693674236985,10.04761866,1636.7,1636.6,13.50091808]
[1693674237387,13.23843612,1636.7,1636.6,13.50091808]
[1693674242085,9.74201352,1636.7,1636.6,13.50091808]
[1693674243587,6.87485,1636.7,1636.6,13.50091808]
[1693674244684,9.74201352,1636.7,1636.6,8.91745808]
[1693674244889,9.74201352,1636.7,1636.6,6.42055808]
[1693674245283,9.74201352,1636.7,1636.6,6.91255808]
[1693674245684,9.74201352,1636.7,1636.6,6.42055808]
[1693674247085,9.74201352,1636.7,1636.6,6.91255808]
[1693674247385,9.74201352,1636.7,1636.6,6.42055808]
[1693674248088,9.74201352,1636.7,1636.6,8.71228808]
[1693674248289,9.74201352,1636.7,1636.6,6.42055808]
[1693674248994,9.74201352,1636.7,1636.6,6.91255808]
[1693674249389,9.74201352,1636.7,1636.6,6.42055808]
[1693674250588,9.74201352,1636.7,1636.6,8.71228808]
[1693674251598,9.74201352,1636.7,1636.6,6.42055808]
[1693674252497,9.74201352,1636.7,1636.6,6.91255808]
[1693674252697,9.74201352,1636.7,1636.6,6.42055808]
[1693674256200,13.23843623,1636.7,1636.6,6.42055808]
[1693674258195,13.23843623,1636.7,1636.6,11.00401808]
[1693674258396,13.23843623,1636.7,1636.6,11.49601808]
[1693674260103,3.49642271,1636.7,1636.6,13.78774808]
[1693674262303,3.19081746,1636.7,1636.6,13.78774808]
[1693674262806,3.19081746,1636.7,1636.6,16.07947808]
[1693674262999,2.70198572,1636.7,1636.6,16.07947808]
[1693674263607,2.39638047,1636.7,1636.6,16.07947808]
[1693674264307,0.00916505,1636.8,1636.6,16.07947808]
[1693674264501,0.00916505,1636.8,1636.7,5.491]
[1693674264805,2.30061505,1636.8,1636.7,14.99847]
[1693674265305,0.00916505,1636.8,1636.7,14.99847]
[1693674266706,2.30061505,1636.8,1636.7,14.99847]
[1693674268407,5.16777857,1636.8,1636.7,14.99847]
[1693674270611,2.30061505,1636.8,1636.7,14.99847]
[1693674271211,5.79701311,1636.8,1636.7,14.99847]
[1693674271510,2.60619565,1636.8,1636.7,14.99847]
[1693674272610,5.00122301,1636.8,1636.7,14.99847]
[1693674274006,7.86838653,1636.8,1636.7,14.99847]
[1693674274412,2.70977301,1636.8,1636.7,14.99847]
[1693674275411,5.57693653,1636.8,1636.7,14.99847]
[1693674276007,2.70977301,1636.8,1636.7,14.99847]
[1693674277212,2.70977301,1636.8,1636.7,14.2932682]
[1693674277213,5.57693653,1636.8,1636.7,14.2932682]
[1693674278013,2.70977301,1636.8,1636.7,14.2932682]
[1693674279307,0.00916505,1636.8,1636.7,14.2932682]
[1693674279511,0.00916505,1636.8,1636.7,14.79265093]
[1693674280515,0.00916505,1636.8,1636.7,17.08424093]
[1693674286317,2.40387532,1636.8,1636.7,17.08424093]
[1693674288724,4.00016909,1636.8,1636.7,17.08424093]
[1693674294431,0.00916505,1636.8,1636.7,17.08424093]
[1693674299530,0.00916505,1636.8,1636.7,29.75085373]
[1693674299736,38.71668799,1637.2,1636.7,29.75085373]
[1693674300028,2.4004,1637.2,1637.1,5.491]
[1693674300230,2.4004,1637.2,1637.1,12.85609]
[1693674300627,2.4004,1637.2,1637.1,15.27929]
[1693674301527,12.80754811,1637.2,1637.1,15.27929]
[1693674302127,6.6971059,1637.2,1637.1,15.27929]
[1693674303530,2.70592211,1637.2,1637.1,15.27929]
[1693674303731,5.8980318,1637.2,1637.1,15.27929]
[1693674305935,3.4976318,1637.2,1637.1,17.57032]
[1693674308028,3.19210969,1637.2,1637.1,17.57032]
[1693674308439,0.30552211,1637.2,1637.1,17.57032]
[1693674308735,3.19210969,1637.2,1637.1,17.57032]
[1693674308935,0.30552211,1637.2,1637.1,17.57032]
[1693674309130,3.4976318,1637.3,1637.1,17.57032]
[1693674309334,3.4976318,1637.3,1637.2,12.36367]
[1693674309639,13.37942122,1637.4,1637.2,12.36367]
[1693674309938,11.78456,1637.4,1637.3,0.492]
[1693674310132,11.78456,1637.4,1637.3,5.0735]
[1693674310339,9.40776,1637.4,1637.3,5.0735]
[1693674310541,12.27492352,1637.4,1637.3,5.0735]
[1693674310841,9.40776,1637.4,1637.3,5.0735]
[1693674311134,12.27492352,1637.4,1637.3,5.0735]
[1693674311339,9.40776,1637.4,1637.3,5.0735]
[1693674311940,9.40776,1637.4,1637.3,10.5645]
[1693674312439,7.11706,1637.4,1637.3,12.85525]
[1693674313740,3.88537122,1637.5,1637.3,12.85525]
[1693674313946,10.88574122,1637.5,1637.4,5.491]
[1693674314146,10.88574122,1637.5,1637.3,5.491]
[1693674314147,16.04350474,1637.5,1637.3,5.491]
[1693674314445,16.04350474,1637.5,1637.3,5.983]
[1693674315140,13.17634122,1637.5,1637.3,5.983]
[1693674315340,16.04350474,1637.5,1637.3,8.27375]
[1693674316139,16.04350474,1637.5,1637.0,0.48096485]
[1693674316140,9.3557977,1637.4,1637.0,10.55415485]
[1693674316443,6.87225,1637.3,1637.1,4.58206]
[1693674316643,6.17664122,1637.2,1637.1,5.07406]
[1693674316946,1.59486122,1637.2,1637.1,7.36509]
[1693674317244,3.88575122,1637.2,1637.1,7.36509]
[1693674319039,6.17664122,1637.2,1637.1,7.36509]
[1693674321946,6.17664122,1637.2,1637.1,12.85609]
[1693674322346,3.88575122,1637.2,1637.1,12.85609]
[1693674322540,1.59486122,1637.2,1637.1,12.85609]
[1693674323051,11.05440105,1637.3,1637.1,15.14712]
[1693674323442,9.46086063,1637.3,1637.2,2.5746]
[1693674323738,9.46086063,1637.3,1637.2,7.15638]
[1693674324039,6.97186063,1637.3,1637.2,7.15638]
[1693674324441,9.83902415,1637.3,1637.2,7.15638]
[1693674324640,7.75422519,1637.3,1637.2,6.23984499]
[1693674324849,8.87091272,1637.3,1637.2,6.23984499]
[1693674325549,11.73807624,1637.3,1637.2,6.23984499]
[1693674326044,14.02887624,1637.3,1637.2,1.65806499]
[1693674326347,14.02887624,1637.3,1637.1,10.07301]
[1693674326544,3.49279465,1637.2,1637.1,10.07301]
[1693674326759,8.07457465,1637.2,1637.1,10.07301]
[1693674326953,8.07457465,1637.2,1637.1,10.56501]
[1693674328453,8.07457465,1637.2,1637.1,12.85604]
[1693674329151,5.78368465,1637.2,1637.1,12.36404]
[1693674329650,5.78368465,1637.2,1637.1,12.85604]
[1693674330150,5.78368465,1637.2,1637.1,12.36404]
[1693674331645,5.47817298,1637.2,1637.1,12.36404]
[1693674331849,5.47817298,1637.2,1637.1,0.49286643]
[1693674331850,4.58178,1637.2,1637.1,0.49286643]
[1693674332051,10.75761032,1637.2,1636.9,8.26662451]
[1693674332352,5.14458696,1637.1,1636.9,10.55786451]
[1693674332652,4.58234,1637.0,1636.9,10.55786451]
[1693674332954,4.58234,1637.0,1636.9,11.04986451]
[1693674334350,4.58234,1637.0,1636.9,10.55786451]
[1693674334651,4.58234,1637.0,1636.9,2.77561451]
[1693674334652,6.87351,1637.0,1636.9,2.77561451]
[1693674334849,6.87351,1637.0,1636.9,5.06692451]
[1693674335950,6.87351,1637.0,1636.9,5.55892451]
[1693674336252,6.87351,1637.0,1636.9,5.06692451]
[1693674336951,6.87351,1637.0,1636.9,5.55892451]
[1693674337252,6.87351,1637.0,1636.9,5.06692451]
[1693674337446,6.88096606,1637.0,1636.9,5.06692451]
[1693674338754,7.1865135,1637.0,1636.9,5.06692451]
[1693674339352,7.1865135,1637.0,1636.9,5.55892451]
[1693674339555,9.57870149,1637.0,1636.9,5.55892451]
[1693674339858,4.8953435,1637.0,1636.9,5.55892451]
[1693674340553,7.28754096,1637.0,1636.9,5.06692451]
[1693674343461,8.08262648,1637.0,1636.9,5.06692451]
[1693674346552,10.37379648,1637.0,1636.9,0.48437451]
[1693674346865,6.88096606,1637.0,1636.8,17.39761]
[1693674347063,5.1371,1636.9,1636.8,15.1062]
[1693674347264,12.01103,1636.9,1636.8,15.1062]
[1693674348964,12.01103,1636.9,1636.8,15.60388694]
[1693674352372,12.01847829,1636.9,1636.8,15.60388694]
[1693674361978,14.41191197,1636.9,1636.8,15.60388694]
[1693674362975,14.41191197,1636.9,1636.8,10.11288694]
[1693674363378,14.41191197,1636.9,1636.8,7.82151694]
[1693674364077,14.71676648,1636.9,1636.8,10.11296694]
[1693674364273,15.51133797,1636.9,1636.8,10.11296694]
[1693674364875,15.51133797,1636.9,1636.8,7.82151694]
[1693674365276,15.51133797,1636.9,1636.8,5.35771694]
[1693674365680,15.51133797,1636.9,1636.8,3.06638694]
[1693674365879,23.29364797,1636.9,1636.8,0.49768694]
[1693674366080,23.29364797,1636.9,1636.6,5.491]
[1693674366381,2.39233394,1636.7,1636.6,7.78272]
[1693674366578,14.40420394,1636.7,1636.6,5.491]
[1693674366777,15.9989283,1636.7,1636.6,5.491]
[1693674367285,23.28735602,1636.7,1636.4,14.86571]
[1693674367579,6.17835863,1636.5,1636.4,15.34319275]
[1693674368081,6.17835863,1636.5,1636.4,13.05123275]
[1693674368082,12.01271,1636.5,1636.4,13.05123275]
[1693674368275,13.60732863,1636.5,1636.4,13.05123275]
[1693674368476,11.31545863,1636.5,1636.4,13.05123275]
[1693674369079,9.72084,1636.5,1636.4,15.62193275]
[1693674371078,9.72084,1636.5,1636.4,17.91394275]
[1693674375883,9.72084,1636.5,1636.4,18.02625853]
[1693674376988,12.11276794,1636.5,1636.4,18.02625853]
[1693674382292,12.11990162,1636.5,1636.4,18.02625853]
[1693674383099,12.11990162,1636.5,1636.4,17.91394275]
[1693674384001,9.72797368,1636.5,1636.4,17.91394275]
[1693674391202,9.72797368,1636.5,1636.4,18.02625758]
[1693674393208,9.72797368,1636.5,1636.4,13.44229758]
[1693674393508,13.61273754,1636.5,1636.4,11.15039758]
[1693674393702,13.61273754,1636.5,1636.4,13.44240758]
[1693674394210,11.32086754,1636.5,1636.4,15.73441758]
[1693674394411,11.32086754,1636.5,1636.4,18.02642758]
[1693674396412,11.32086754,1636.5,1636.4,18.51842758]
[1693674396912,11.32086754,1636.5,1636.4,18.02642758]
[1693674398316,11.32086754,1636.5,1636.4,17.91411275]
[1693674399114,9.72797368,1636.5,1636.4,17.91411275]
[1693674400915,9.72797368,1636.5,1636.4,18.40611275]
[1693674401716,9.72797368,1636.5,1636.4,17.91411275]
[1693674406722,9.72797368,1636.5,1636.4,18.40611275]
[1693674408023,9.72797368,1636.5,1636.4,17.91411275]
[1693674409721,11.32086754,1636.5,1636.4,17.91411275]
[1693674410726,9.05093106,1636.5,1636.4,17.91411275]
[1693674411928,9.05093106,1636.5,1636.4,18.40611275]
[1693674412224,9.05093106,1636.5,1636.4,17.91411275]
[1693674412420,11.442859,1636.5,1636.4,17.91411275]
[1693674412620,11.442859,1636.5,1636.4,18.40611275]
[1693674412926,9.84996514,1636.5,1636.4,18.40611275]
[1693674413521,2.39906162,1636.5,1636.4,20.69812275]
[1693674413730,1.60442965,1636.5,1636.4,20.69812275]
[1693674414527,2.70467939,1636.5,1636.4,20.69812275]
[1693674415923,4.99654939,1636.5,1636.4,18.40611275]
[1693674418233,2.70467939,1636.5,1636.4,18.40611275]
[1693674420135,5.57184291,1636.5,1636.4,18.40611275]
[1693674420922,7.86371291,1636.5,1636.4,18.40611275]
[1693674421323,5.1661672,1636.5,1636.4,18.40611275]
[1693674421533,2.8742972,1636.5,1636.4,18.40611275]
[1693674422627,0.00713368,1636.5,1636.4,18.40611275]
[1693674423833,2.29900368,1636.5,1636.4,18.40611275]
[1693674424035,4.59087368,1636.5,1636.4,18.40611275]
[1693674424334,7.4580372,1636.5,1636.4,18.40611275]
[1693674424827,7.4580372,1636.5,1636.4,17.91411275]
[1693674425933,7.4580372,1636.5,1636.4,18.40611275]
[1693674427135,7.4580372,1636.5,1636.4,17.91411275]
[1693674429537,9.05535839,1636.5,1636.4,17.91411275]
[1693674430436,9.05535839,1636.5,1636.4,18.40611275]
[1693674431334,9.05535839,1636.5,1636.4,17.91411275]
[1693674433140,9.05535839,1636.5,1636.4,18.40611275]
[1693674434241,9.05535839,1636.5,1636.4,17.91411275]
[1693674435938,9.05535839,1636.5,1636.4,18.40611275]
[1693674436240,9.05535839,1636.5,1636.4,17.91411275]
[1693674436441,10.15963294,1636.5,1636.4,17.91411275]
[1693674437341,7.29246942,1636.5,1636.4,18.40611275]
[1693674438543,10.15963294,1636.5,1636.4,18.40611275]
[1693674439243,7.76365116,1636.5,1636.4,18.40611275]
[1693674439439,10.15965524,1636.5,1636.4,18.40611275]
[1693674440343,10.15965524,1636.5,1636.4,17.91411275]
[1693674440846,7.86778524,1636.5,1636.4,17.91411275]
[1693674441145,2.70875172,1636.5,1636.4,18.40611275]
[1693674442442,10.15965524,1636.5,1636.4,17.91411275]
[1693674444549,7.4580372,1636.5,1636.4,17.91411275]
[1693674445048,9.7499072,1636.5,1636.4,5.96848275]
[1693674446047,9.7499072,1636.5,1636.4,8.26049275]
[1693674446545,9.7499072,1636.5,1636.4,10.55250275]
[1693674447048,7.4580372,1636.5,1636.4,10.55250275]
[1693674449448,7.4580372,1636.5,1636.4,12.84451275]
[1693674451554,10.15967085,1636.5,1636.4,12.84451275]
[1693674451750,10.15967085,1636.5,1636.4,13.33651275]
[1693674451956,10.15927308,1636.5,1636.4,13.33651275]
[1693674452353,10.15927308,1636.5,1636.4,15.94001275]
[1693674452554,10.15927308,1636.5,1636.4,18.47751275]
[1693674458262,10.15927308,1636.5,1636.4,17.98551275]
[1693674458762,10.15927308,1636.5,1636.4,18.09783004]
[1693674459563,7.4580372,1636.5,1636.4,18.09783004]
[1693674462461,7.4580372,1636.5,1636.4,18.58983004]
[1693674464463,7.4580372,1636.5,1636.4,18.09783004]
[1693674466066,7.4580372,1636.5,1636.4,18.58983004]
[1693674466671,10.1592678,1636.5,1636.4,18.58983004]
[1693674467068,10.1592678,1636.5,1636.4,18.47751275]
[1693674468062,10.1592678,1636.5,1636.4,17.98551275]
[1693674469672,10.1592678,1636.5,1636.4,18.47751275]
[1693674471374,5.00023428,1636.5,1636.4,18.47751275]
[1693674471566,2.40274044,1636.5,1636.4,20.88183573]
[1693674471873,4.00001013,1636.5,1636.4,20.88183573]
[1693674473877,1.60440337,1636.5,1636.4,20.88183573]
[1693674474074,1.60440337,1636.5,1636.4,20.76952275]
[1693674474677,0.00713368,1636.5,1636.4,20.76952275]
[1693674475377,6.87489,1636.7,1636.4,20.76952275]
[1693674475576,6.87489,1636.7,1636.6,5.491]
[1693674475874,9.74205352,1636.7,1636.6,5.491]
[1693674476074,9.74205352,1636.7,1636.6,10.07446]
[1693674476475,9.74839018,1636.7,1636.6,12.49006]
[1693674477477,9.74839018,1636.7,1636.6,12.98206]
[1693674478175,6.88122666,1636.7,1636.6,12.98206]
[1693674481682,10.38150703,1636.7,1636.6,12.98206]
[1693674482383,6.37378055,1636.7,1636.6,8.3986]
[1693674484385,6.37378055,1636.7,1636.6,7.9066]
[1693674487781,6.37378055,1636.7,1636.6,8.39152997]
[1693674489282,6.37378055,1636.7,1636.6,8.88352997]
[1693674489677,2.87350018,1636.7,1636.6,8.88352997]
[1693674489887,0.00633666,1636.7,1636.6,8.88352997]
[1693674496895,2.40154414,1636.7,1636.6,8.88352997]
[1693674503596,5.26870766,1636.7,1636.6,8.88352997]
[1693674503796,2.40154414,1636.7,1636.6,8.88352997]
[1693674504792,3.99834913,1636.7,1636.6,8.88352997]
[1693674504994,10.11060878,1636.7,1636.6,8.88352997]
[1693674505301,10.11129375,1636.7,1636.6,8.88352997]
[1693674505498,10.41690674,1636.7,1636.6,8.88352997]
[1693674510510,13.28407026,1636.7,1636.6,8.88352997]
[1693674510712,13.28407026,1636.7,1636.6,8.39152997]
[1693674511915,4.47080241,1636.7,1636.6,8.39152997]
[1693674512813,4.47080241,1636.7,1636.6,8.88352997]
[1693674513408,9.05398241,1636.7,1636.6,15.75871997]
[1693674513908,9.05398241,1636.7,1636.6,18.15181997]
[1693674514619,6.18681889,1636.7,1636.6,18.15181997]
[1693674515110,6.18681889,1636.7,1636.6,12.66081997]
[1693674515304,6.18681889,1636.7,1636.6,18.15181997]
[1693674516314,9.05398241,1636.7,1636.6,18.15181997]
[1693674518516,6.18681889,1636.7,1636.6,18.15181997]
[1693674518912,10.41693677,1636.7,1636.6,18.15181997]
[1693674519218,12.70852677,1636.7,1636.6,18.15181997]
[1693674519416,10.41693677,1636.7,1636.6,18.15181997]
[1693674520614,12.70852677,1636.7,1636.6,18.15181997]
[1693674520913,10.41693677,1636.7,1636.6,18.15181997]
[1693674522220,12.70852677,1636.7,1636.6,18.15181997]
[1693674522822,15.57569029,1636.7,1636.6,18.15181997]
[1693674524321,15.57569029,1636.7,1636.6,17.65981997]
[1693674524821,13.28410029,1636.7,1636.6,17.65981997]
[1693674525021,12.70852677,1636.7,1636.6,18.15181997]
[1693674525322,12.70836365,1636.7,1636.6,18.15181997]
[1693674525526,6.59623832,1636.7,1636.6,18.15181997]
[1693674526218,8.88782832,1636.7,1636.6,18.15181997]
[1693674526525,11.75499184,1636.7,1636.6,18.15181997]
[1693674526824,7.45668018,1636.7,1636.6,18.15181997]
[1693674527017,7.45668018,1636.7,1636.6,17.65981997]
[1693674527323,9.05430814,1636.7,1636.6,17.65981997]
[1693674528224,6.18714462,1636.7,1636.6,18.15181997]
[1693674528416,9.05430814,1636.7,1636.6,17.65981997]
[1693674529213,6.18714462,1636.7,1636.6,18.15181997]
[1693674529621,9.05430814,1636.7,1636.6,18.15181997]
[1693674529923,6.18714462,1636.7,1636.6,18.15181997]